[Event "Bergen Grand Prix 2019"]
[Site "Bergen"]
[Date "2019.11.16"]
[Round "3.1"]
[White "Haldorsen, Benjamin"]
[Black "Fossan, Aleksander"]
[Result "1/2-1/2"]
[ECO "B36"]
[WhiteElo "2443"]
[BlackElo "2179"]
[Annotator "NA"]
[PlyCount "51"]
[EventDate "2019.11.15"]
[EventType "swiss"]
[EventCountry "NOR"]
[SourceTitle "playchess.com"]
[Source "ChessBase"]
[SourceQuality "1"]
[TimeControl "40/5400:1800"]

1. e4 {[%emt 0:00:48]} c5 {[%emt 0:01:00]} 2. Nf3 {[%emt 0:00:29]} g6 {[%emt 0:00:37]} 3. c4 {[%emt 0:00:26]} Nc6 {[%emt 0:00:43]} 4. d4 {[%emt 0:00:05]} cxd4 {[%emt 0:00:04]} 5. Nxd4 {[%emt 0:00:04]} Nf6 {[%emt 0:00:27]} 6. Nc3 {[%emt 0:01:24]} Nxd4 {[%emt 0:01:45]} 7. Qxd4 {[%emt 0:00:03]} d6 {[%emt 0:00:07]} 8. Be3 {[%emt 0:07:09]} Bg7 {[%emt 0:00:14]} 9. f3 {[%emt 0:01:26]} O-O {[%emt 0:00:05]} 10. Qd2 {[%emt 0:00:00]} a5 {[%emt 0:01:14]} 11. Be2 {[%emt 0:05:43]} a4 {[%emt 0:00:13]} 12. Rc1 {[%emt 0:00:23]} Qa5 {[%emt 0:00:49]} 13. Kf2 {[%emt 0:01:06]} Be6 {[%emt 0:12:15]} 14. Nd5 {[%emt 0:08:15]} Bxd5 {[%emt 0:00:08]} 15. Qxa5 $14 {[%emt 0:01:34]} Rxa5 {[%emt 0:00:02]} 16. exd5 {[%emt 0:04:56]} Nd7 {[%emt 0:07:53]} 17. Rb1 {[%emt 0:08:10]} Nc5 {[%emt 0:01:16]} 18. Rhd1 {[%emt 0:02:01]} f5 {[%emt 0:05:47]} 19. g3 {[%emt 0:09:17]} Raa8 {[%emt 0:05:38]} 20. Kg2 {[%emt 0:03:50]} Rfc8 {[%emt 0:00:35]} 21. h4 {[%emt 0:03:29]} Kf7 {[%emt 0:02:47]} 22. h5 {[%emt 0:02:14]} Re8 {[%emt 0:03:04]} 23. hxg6+ {[%emt 0:00:49]} hxg6 {[%emt 0:00:09]} 24. Bf2 {[%emt 0:00:24]} Rh8 {[%emt 0:02:29]} 25. Rd2 {[%emt 0:04:37]} Be5 {[%emt 0:04:47]} 26. Bxc5 {[%emt 0:05:35]} 1/2-1/2

[Event "Bergen Grand Prix 2019"]
[Site "Bergen"]
[Date "2019.11.16"]
[Round "3.2"]
[White "Kizatbay, Abyl"]
[Black "Fossan, Petter"]
[Result "0-1"]
[ECO "B27"]
[WhiteElo "2113"]
[BlackElo "2315"]
[Annotator "NA"]
[PlyCount "70"]
[EventDate "2019.11.15"]
[EventType "swiss"]
[EventCountry "NOR"]
[SourceTitle "playchess.com"]
[Source "ChessBase"]
[SourceQuality "1"]
[TimeControl "40/5400:1800"]

1. e4 {[%emt 0:01:31]} c5 {[%emt 0:01:42]} 2. Nf3 {[%emt 0:00:04]} g6 {[%emt 0:06:25]} 3. d4 {[%emt 0:00:59]} cxd4 {[%emt 0:00:03]} 4. Qxd4 {[%emt 0:00:04]} Nf6 {[%emt 0:00:05]} 5. Nc3 {[%emt 0:00:20]} Nc6 {[%emt 0:00:04]} 6. Qa4 {[%emt 0:00:06]} d6 {[%emt 0:00:06]} 7. e5 {[%emt 0:00:13]} dxe5 {[%emt 0:00:03]} 8. Nxe5 {[%emt 0:00:06]} Bd7 {[%emt 0:00:04]} 9. Nxd7 {[%emt 0:00:05]} Qxd7 {[%emt 0:00:13]} 10. Be3 {[%emt 0:00:03]} Bg7 {[%emt 0:00:29]} 11. Rd1 {[%emt 0:00:14]} Qc8 {[%emt 0:00:09]} 12. Be2 {[%emt 0:00:40]} O-O {[%emt 0:00:05]} 13. O-O {[%emt 0:00:04]} a6 {[%emt 0:01:47]} 14. Rfe1 {[%emt 0:02:02]} Qc7 {[%emt 0:06:11]} 15. Qh4 {[%emt 0:12:29]} Rad8 $11 {[%emt 0:02:02]} 16. Na4 {[%emt 0:16:19]} Nd5 {[%emt 0:16:02]} 17. Bg5 {[%emt 0:07:23]} Qa5 {[%emt 0:11:27]} 18. a3 {[%emt 0:07:50]} Nd4 {[%emt 0:03:28]} 19. b3 {[%emt 0:01:50]} Nxc2 {[%emt 0:05:50]} 20. Rf1 {[%emt 0:01:58]} Nf6 {[%emt 0:01:57]} 21. Rc1 {[%emt 0:02:55]} Nd4 {[%emt 0:01:41]} 22. Bd1 {[%emt 0:02:28]} Nf5 {[%emt 0:06:45]} 23. Qh3 {[%emt 0:01:11]} Rc8 {[%emt 0:02:02]} 24. b4 {[%emt 0:02:06]} Qe5 {[%emt 0:01:03]} 25. Nc5 {[%emt 0:00:06]} Nd6 {[%emt 0:04:00]} 26. Bd2 {[%emt 0:02:33]} Qd4 {[%emt 0:07:08]} 27. Bc3 {[%emt 0:01:05]} Qf4 {[%emt 0:00:19]} 28. Bb3 {[%emt 0:00:02]} Nfe4 {[%emt 0:02:42]} 29. Ne6 {[%emt 0:02:36]} Ng5 {[%emt 0:03:09]} 30. Nxg5 {[%emt 0:06:01]} Qxg5 {[%emt 0:00:16]} 31. f4 {[%emt 0:00:06]} Qf5 {[%emt 0:00:21]} 32. g4 {[%emt 0:00:21]} Qe4 {[%emt 0:00:19]} 33. Bd2 {[%emt 0:00:44]} Bd4+ {[%emt 0:00:07]} 34. Rf2 {[%emt 0:00:49]} Rxc1+ {[%emt 0:00:13]} 35. Bxc1 {[%emt 0:00:01]} Qe1+ {[%emt 0:00:08]} 0-1

[Event "Bergen Grand Prix 2019"]
[Site "Bergen"]
[Date "2019.11.16"]
[Round "3.3"]
[White "Eliseev, Sergey"]
[Black "Mansoor, Afras"]
[Result "0-1"]
[ECO "D03"]
[WhiteElo "1911"]
[BlackElo "2115"]
[Annotator "NA"]
[PlyCount "70"]
[EventDate "2019.11.15"]
[EventType "swiss"]
[EventCountry "NOR"]
[SourceTitle "playchess.com"]
[Source "ChessBase"]
[SourceQuality "1"]
[TimeControl "40/5400:1800"]

1. d4 {[%emt 0:00:01]} Nf6 {[%emt 0:02:28]} 2. Nf3 {[%emt 0:00:04]} g6 {[%emt 0:00:08]} 3. Bg5 {[%emt 0:00:06]} Bg7 {[%emt 0:00:04]} 4. Nbd2 {[%emt 0:00:08]} O-O {[%emt 0:00:11]} 5. c3 {[%emt 0:00:11]} d5 {[%emt 0:05:19]} 6. e3 {[%emt 0:00:07]} Bf5 {[%emt 0:02:27]} 7. h3 {[%emt 0:00:22]} c5 {[%emt 0:01:01]} 8. dxc5 {[%emt 0:02:02]} Qc7 {[%emt 0:08:51]} 9. Nb3 {[%emt 0:02:02]} Rd8 {[%emt 0:06:12]} 10. Bf4 $11 {[%emt 0:14:32]} Qc8 {[%emt 0:02:03]} 11. Ne5 {[%emt 0:15:22]} a5 {[%emt 0:07:48]} 12. a4 {[%emt 0:14:27]} Na6 {[%emt 0:08:19]} 13. g4 {[%emt 0:11:16]} Be6 {[%emt 0:01:47]} 14. c6 {[%emt 0:07:39]} bxc6 {[%emt 0:01:05]} 15. Nxa5 {[%emt 0:01:13]} Bd7 {[%emt 0:07:23]} 16. Nb3 {[%emt 0:00:00]} Ne4 {[%emt 0:00:48]} 17. Bxa6 {[%emt 0:01:02]} Rxa6 {[%emt 0:02:37]} 18. f3 {[%emt 0:00:48]} Nd6 {[%emt 0:00:49]} 19. Nxd7 {[%emt 0:00:49]} Rxd7 {[%emt 0:00:09]} 20. Nc5 {[%emt 0:00:57]} e5 {[%emt 0:00:34]} 21. Nxd7 {[%emt 0:00:37]} exf4 {[%emt 0:01:38]} 22. Nc5 {[%emt 0:00:20]} Ra7 {[%emt 0:00:31]} 23. exf4 {[%emt 0:01:43]} Nc4 {[%emt 0:02:51]} 24. Ra2 {[%emt 0:01:37]} Qe8+ {[%emt 0:00:33]} 25. Kf2 {[%emt 0:04:58]} Qe3+ {[%emt 0:00:07]} 26. Kg3 {[%emt 0:00:02]} Qxc5 {[%emt 0:00:06]} 27. Re1 {[%emt 0:00:34]} h6 {[%emt 0:00:38]} 28. Qe2 {[%emt 0:00:51]} Bf6 {[%emt 0:00:42]} 29. h4 {[%emt 0:00:56]} Re7 {[%emt 0:09:18]} 30. Qd1 {[%emt 0:00:27]} g5 {[%emt 0:00:15]} 31. hxg5 {[%emt 0:00:33]} hxg5 {[%emt 0:00:05]} 32. fxg5 {[%emt 0:00:31]} Bxg5 {[%emt 0:00:10]} 33. Rxe7 {[%emt 0:00:09]} Qxe7 {[%emt 0:00:20]} 34. a5 {[%emt 0:00:29]} Qe5+ {[%emt 0:00:21]} 35. Kg2 {[%emt 0:00:11]} Ne3+ {[%emt 0:00:07]} 0-1

[Event "Bergen Grand Prix 2019"]
[Site "Bergen"]
[Date "2019.11.16"]
[Round "3.4"]
[White "Flatebo, Hallvard Haug"]
[Black "Gronnestad, Anita"]
[Result "0-1"]
[ECO "D02"]
[WhiteElo "1837"]
[BlackElo "1952"]
[Annotator "NA"]
[PlyCount "60"]
[EventDate "2019.11.15"]
[EventType "swiss"]
[EventCountry "NOR"]
[SourceTitle "playchess.com"]
[Source "ChessBase"]
[SourceQuality "1"]
[TimeControl "40/5400:1800"]

1. d4 {[%emt 0:00:03]} d5 {[%emt 0:00:05]} 2. Nf3 {[%emt 0:00:05]} Nf6 {[%emt 0:00:06]} 3. g3 {[%emt 0:00:06]} Bf5 {[%emt 0:00:54]} 4. Bg2 {[%emt 0:00:09]} e6 {[%emt 0:00:22]} 5. O-O {[%emt 0:00:12]} Bd6 {[%emt 0:00:44]} 6. Nbd2 {[%emt 0:00:54]} h6 {[%emt 0:01:20]} 7. c4 {[%emt 0:00:09]} c6 {[%emt 0:00:52]} 8. Qb3 {[%emt 0:01:58]} b6 {[%emt 0:01:36]} 9. Ne5 {[%emt 0:02:56]} Qc7 {[%emt 0:02:12]} 10. Ndf3 {[%emt 0:03:39]} Ne4 {[%emt 0:03:30]} 11. Be3 {[%emt 0:04:02]} f6 {[%emt 0:07:45]} 12. Nd3 {[%emt 0:00:11]} O-O {[%emt 0:01:05]} 13. Rac1 {[%emt 0:04:16]} Qe7 $16 {[%emt 0:04:06]} 14. Rfd1 {[%emt 0:09:47]} Nd7 {[%emt 0:02:47]} 15. Nd2 {[%emt 0:03:59]} Nxd2 {[%emt 0:02:54]} 16. Rxd2 {[%emt 0:00:52]} Rac8 {[%emt 0:01:11]} 17. Rdc2 {[%emt 0:02:01]} Rcd8 {[%emt 0:05:08]} 18. Qa4 {[%emt 0:03:18]} dxc4 {[%emt 0:01:30]} 19. Qxc4 {[%emt 0:00:45]} c5 {[%emt 0:02:30]} 20. dxc5 {[%emt 0:03:59]} Nxc5 {[%emt 0:04:53]} 21. Bxc5 {[%emt 0:00:58]} Bxc5 {[%emt 0:00:34]} 22. Be4 {[%emt 0:00:46]} Rd4 {[%emt 0:01:19]} 23. Qb5 {[%emt 0:08:47]} Bxe4 {[%emt 0:00:53]} 24. Rc4 {[%emt 0:01:18]} Bxd3 {[%emt 0:02:11]} 25. exd3 {[%emt 0:00:06]} Rd5 {[%emt 0:01:08]} 26. Qb3 {[%emt 0:00:47]} Qd7 {[%emt 0:00:46]} 27. Rd1 {[%emt 0:00:42]} Rd8 {[%emt 0:00:32]} 28. Re4 {[%emt 0:00:32]} Bd4 {[%emt 0:02:15]} 29. Rde1 {[%emt 0:00:43]} Re5 {[%emt 0:01:44]} 30. Kg2 {[%emt 0:00:23]} Qd5 {[%emt 0:00:52]} 0-1

[Event "Bergen Grand Prix 2019"]
[Site "Bergen"]
[Date "2019.11.16"]
[Round "3.5"]
[White "Fossan, Benjamin"]
[Black "Holleland, Sigve"]
[Result "0-1"]
[ECO "B31"]
[WhiteElo "1942"]
[BlackElo "2098"]
[Annotator "NA"]
[PlyCount "114"]
[EventDate "2019.11.15"]
[EventType "swiss"]
[EventCountry "NOR"]
[SourceTitle "playchess.com"]
[Source "ChessBase"]
[SourceQuality "1"]
[TimeControl "40/5400:1800"]

1. e4 {[%emt 0:00:01]} c5 {[%emt 0:04:05]} 2. Nf3 {[%emt 0:00:09]} Nc6 {[%emt 0:00:09]} 3. Bb5 {[%emt 0:00:08]} g6 {[%emt 0:01:10]} 4. Bxc6 {[%emt 0:00:06]} bxc6 {[%emt 0:00:43]} 5. O-O {[%emt 0:00:56]} Bg7 {[%emt 0:00:17]} 6. Re1 {[%emt 0:00:35]} e5 {[%emt 0:02:52]} 7. c3 {[%emt 0:00:38]} Qb6 {[%emt 0:02:45]} 8. Na3 {[%emt 0:09:38]} Ba6 {[%emt 0:00:28]} 9. d3 {[%emt 0:01:07]} Ne7 {[%emt 0:01:45]} 10. Rb1 {[%emt 0:09:31]} O-O {[%emt 0:04:12]} 11. Be3 $14 {[%emt 0:06:22]} d5 {[%emt 0:00:48]} 12. c4 {[%emt 0:10:11]} Rfe8 {[%emt 0:06:51]} 13. Qa4 {[%emt 0:06:56]} d4 {[%emt 0:02:20]} 14. Bd2 {[%emt 0:00:24]} Bc8 {[%emt 0:00:47]} 15. b4 {[%emt 0:04:45]} cxb4 {[%emt 0:07:03]} 16. Rxb4 {[%emt 0:01:11]} Qc7 {[%emt 0:04:56]} 17. Reb1 {[%emt 0:01:43]} f5 {[%emt 0:02:10]} 18. c5 {[%emt 0:01:12]} fxe4 {[%emt 0:06:00]} 19. dxe4 {[%emt 0:00:06]} h6 {[%emt 0:04:01]} 20. Nc4 {[%emt 0:01:02]} Rf8 {[%emt 0:00:52]} 21. Nd6 {[%emt 0:01:21]} Qd7 {[%emt 0:02:55]} 22. Bxh6 {[%emt 0:08:48]} Bxh6 {[%emt 0:02:06]} 23. Nxe5 {[%emt 0:00:03]} Qe6 {[%emt 0:00:58]} 24. Nxc6 {[%emt 0:00:43]} Nxc6 {[%emt 0:05:45]} 25. Qxc6 {[%emt 0:00:04]} Qf6 {[%emt 0:00:08]} 26. Qd5+ {[%emt 0:02:24]} Be6 {[%emt 0:00:37]} 27. Qxd4 {[%emt 0:00:01]} Qxd4 {[%emt 0:01:01]} 28. Rxd4 {[%emt 0:00:02]} Bxa2 {[%emt 0:01:25]} 29. Rbd1 {[%emt 0:01:57]} a5 {[%emt 0:01:52]} 30. g3 {[%emt 0:02:02]} Bb3 {[%emt 0:03:53]} 31. Re1 {[%emt 0:00:50]} a4 {[%emt 0:01:46]} 32. f4 {[%emt 0:01:54]} a3 {[%emt 0:01:49]} 33. c6 {[%emt 0:01:21]} a2 {[%emt 0:04:42]} 34. Ra1 {[%emt 0:00:01]} g5 {[%emt 0:00:24]} 35. e5 {[%emt 0:06:00]} gxf4 {[%emt 0:00:15]} 36. c7 {[%emt 0:00:30]} f3 {[%emt 0:02:35]} 37. Rg4+ {[%emt 0:01:29]} Kh7 {[%emt 0:00:01]} 38. c8=Q Rfxc8 39. Nxc8 {[%emt 0:01:11]} Rxc8 {[%emt 0:00:55]} 40. Rh4 {[%emt 0:02:18]} Rc2 {[%emt 0:01:02]} 41. Kf1 {[%emt 0:02:59]} Kg6 {[%emt 0:02:52]} 42. Rb4 {[%emt 0:06:39]} Rc1+ {[%emt 0:10:26]} 43. Rxc1 {[%emt 0:00:55]} Bxc1 {[%emt 0:00:04]} 44. Rb6+ {[%emt 0:00:29]} Kf5 {[%emt 0:00:13]} 45. Rxb3 {[%emt 0:01:31]} a1=Q {[%emt 0:00:13]} 46. Rxf3+ {[%emt 0:00:05]} Kxe5 {[%emt 0:00:15]} 47. Kg2 {[%emt 0:00:45]} Qa8 {[%emt 0:02:44]} 48. Kf2 {[%emt 0:00:12]} Qa2+ {[%emt 0:00:17]} 49. Kg1 {[%emt 0:00:13]} Ke4 {[%emt 0:00:26]} 50. Rf1 {[%emt 0:00:15]} Be3+ {[%emt 0:00:22]} 51. Kh1 {[%emt 0:00:02]} Qe2 {[%emt 0:00:32]} 52. Rf8 {[%emt 0:01:26]} Bd4 {[%emt 0:01:50]} 53. Re8+ {[%emt 0:01:37]} Be5 {[%emt 0:00:06]} 54. Rf8 {[%emt 0:00:01]} Kd3 {[%emt 0:00:59]} 55. Rf7 {[%emt 0:03:56]} Qe4+ {[%emt 0:00:23]} 56. Kg1 {[%emt 0:00:04]} Bd4+ {[%emt 0:00:09]} 57. Rf2 {[%emt 0:00:26]} Bxf2+ {[%emt 0:00:11]} 0-1

[Event "Bergen Grand Prix 2019"]
[Site "Bergen"]
[Date "2019.11.16"]
[Round "3.6"]
[White "Solheim, Per Otto"]
[Black "Sorensen, Simen"]
[Result "0-1"]
[ECO "B44"]
[WhiteElo "1752"]
[BlackElo "2004"]
[Annotator "NA"]
[PlyCount "76"]
[EventDate "2019.11.15"]
[EventType "swiss"]
[EventCountry "NOR"]
[SourceTitle "playchess.com"]
[Source "ChessBase"]
[SourceQuality "1"]
[TimeControl "40/5400:1800"]

1. e4 {[%emt 0:00:12]} c5 {[%emt 0:00:29]} 2. Nf3 {[%emt 0:00:12]} e6 {[%emt 0:00:10]} 3. d4 {[%emt 0:00:09]} cxd4 {[%emt 0:00:09]} 4. Nxd4 {[%emt 0:00:01]} Nc6 {[%emt 0:00:10]} 5. c4 {[%emt 0:02:44]} Nf6 {[%emt 0:02:32]} 6. Nc3 {[%emt 0:00:53]} Bb4 {[%emt 0:02:19]} 7. Nxc6 {[%emt 0:00:13]} bxc6 {[%emt 0:00:11]} 8. Bd3 {[%emt 0:00:43]} e5 {[%emt 0:02:00]} 9. O-O {[%emt 0:02:10]} d6 {[%emt 0:01:23]} 10. Qc2 {[%emt 0:00:47]} O-O {[%emt 0:01:33]} 11. a3 {[%emt 0:01:32]} Bc5 {[%emt 0:01:16]} 12. b4 {[%emt 0:07:28]} Bd4 $11 {[%emt 0:01:56]} 13. Rb1 {[%emt 0:00:05]} Qe7 {[%emt 0:09:00]} 14. Ne2 {[%emt 0:07:57]} Bb6 {[%emt 0:00:49]} 15. a4 {[%emt 0:02:57]} a5 {[%emt 0:03:38]} 16. b5 {[%emt 0:00:22]} cxb5 {[%emt 0:00:59]} 17. cxb5 {[%emt 0:02:10]} Be6 {[%emt 0:00:56]} 18. Ba3 {[%emt 0:03:22]} Rac8 {[%emt 0:02:42]} 19. Qb2 {[%emt 0:03:41]} Nd7 {[%emt 0:02:41]} 20. Rbc1 {[%emt 0:06:12]} Nc5 {[%emt 0:02:30]} 21. Bxc5 {[%emt 0:02:22]} Rxc5 {[%emt 0:02:17]} 22. Rxc5 {[%emt 0:01:11]} Bxc5 {[%emt 0:00:22]} 23. Kh1 {[%emt 0:15:26]} f5 {[%emt 0:17:28]} 24. exf5 {[%emt 0:02:32]} Bxf5 {[%emt 0:00:26]} 25. Bxf5 {[%emt 0:00:08]} Rxf5 {[%emt 0:00:18]} 26. Ng3 {[%emt 0:11:58]} Rf4 {[%emt 0:01:51]} 27. f3 {[%emt 0:02:26]} Rb4 {[%emt 0:01:37]} 28. Qc2 {[%emt 0:00:52]} Qf7 {[%emt 0:02:27]} 29. Ne4 {[%emt 0:00:45]} Rc4 {[%emt 0:03:16]} 30. Qd1 {[%emt 0:02:49]} Rd4 {[%emt 0:02:12]} 31. Qc2 {[%emt 0:00:17]} Qd5 {[%emt 0:09:49]} 32. Nxc5 {[%emt 0:00:57]} dxc5 {[%emt 0:00:16]} 33. Rb1 {[%emt 0:01:43]} Rb4 {[%emt 0:04:06]} 34. Rxb4 {[%emt 0:01:01]} axb4 {[%emt 0:00:19]} 35. b6 {[%emt 0:00:25]} b3 {[%emt 0:00:13]} 36. Qb1 {[%emt 0:00:07]} c4 37. a5 {[%emt 0:00:00]} Qxa5 38. b7 {[%emt 0:00:00]} Qa7 0-1

[Event "Bergen Grand Prix 2019"]
[Site "Bergen"]
[Date "2019.11.16"]
[Round "3.7"]
[White "Omtvedt, Aleksander"]
[Black "Rasmussen, Jonas H"]
[Result "1/2-1/2"]
[ECO "D11"]
[WhiteElo "1900"]
[BlackElo "1951"]
[Annotator "NA"]
[PlyCount "61"]
[EventDate "2019.11.15"]
[EventType "swiss"]
[EventCountry "NOR"]
[SourceTitle "playchess.com"]
[Source "ChessBase"]
[SourceQuality "1"]
[TimeControl "40/5400:1800"]

1. d4 {[%emt 0:00:57]} Nf6 {[%emt 0:00:09]} 2. g3 {[%emt 0:00:57]} d5 {[%emt 0:00:24]} 3. Bg2 {[%emt 0:00:08]} c6 {[%emt 0:01:46]} 4. Nf3 {[%emt 0:01:02]} Bf5 {[%emt 0:01:32]} 5. O-O {[%emt 0:01:29]} h6 {[%emt 0:00:27]} 6. c4 {[%emt 0:01:41]} e6 {[%emt 0:01:07]} 7. b3 {[%emt 0:01:47]} Nbd7 {[%emt 0:01:04]} 8. Bb2 {[%emt 0:00:10]} Bd6 {[%emt 0:00:58]} 9. Nbd2 {[%emt 0:00:07]} O-O {[%emt 0:00:20]} 10. Re1 {[%emt 0:01:05]} Re8 {[%emt 0:02:01]} 11. Ne5 {[%emt 0:04:36]} Bc7 {[%emt 0:05:39]} 12. Nxd7 {[%emt 0:02:32]} Qxd7 {[%emt 0:01:27]} 13. e4 {[%emt 0:03:32]} dxe4 {[%emt 0:00:58]} 14. Nxe4 {[%emt 0:02:44]} Nxe4 {[%emt 0:02:46]} 15. Bxe4 {[%emt 0:00:04]} Bxe4 {[%emt 0:00:25]} 16. Rxe4 {[%emt 0:00:05]} Rad8 {[%emt 0:00:47]} 17. Qh5 $11 {[%emt 0:02:16]} f5 {[%emt 0:07:54]} 18. Re3 {[%emt 0:05:05]} Qf7 {[%emt 0:04:20]} 19. Qe2 {[%emt 0:02:19]} Qg6 {[%emt 0:08:51]} 20. Re1 {[%emt 0:04:43]} Ba5 {[%emt 0:01:35]} 21. Rd1 {[%emt 0:01:14]} Bc7 {[%emt 0:04:25]} 22. a3 {[%emt 0:01:32]} Bf4 {[%emt 0:01:23]} 23. Red3 {[%emt 0:02:24]} Bg5 {[%emt 0:02:23]} 24. Qe5 {[%emt 0:04:35]} Bf6 {[%emt 0:04:40]} 25. Qc5 {[%emt 0:00:38]} a6 {[%emt 0:00:59]} 26. a4 {[%emt 0:03:39]} Qf7 {[%emt 0:02:09]} 27. Bc3 {[%emt 0:00:33]} Rd7 {[%emt 0:07:21]} 28. Ba5 {[%emt 0:01:13]} Bd8 {[%emt 0:01:29]} 29. Bc3 {[%emt 0:07:35]} Bf6 {[%emt 0:01:42]} 30. Ba5 {[%emt 0:00:17]} Bd8 {[%emt 0:02:50]} 31. Bc3 {[%emt 0:01:55]} 1/2-1/2

[Event "Bergen Grand Prix 2019"]
[Site "Bergen"]
[Date "2019.11.16"]
[Round "3.8"]
[White "Jacobsen, Hans-Henry"]
[Black "Sivertsen, Jarle"]
[Result "1/2-1/2"]
[ECO "A10"]
[WhiteElo "1646"]
[BlackElo "1597"]
[Annotator "NA"]
[PlyCount "116"]
[EventDate "2019.11.15"]
[EventType "swiss"]
[EventCountry "NOR"]
[SourceTitle "playchess.com"]
[Source "ChessBase"]
[SourceQuality "1"]
[TimeControl "40/5400:1800"]

1. c4 {[%emt 0:00:02]} f5 {[%emt 0:00:47]} 2. Nf3 {[%emt 0:00:56]} Nf6 {[%emt 0:00:11]} 3. Nc3 {[%emt 0:00:43]} e6 {[%emt 0:00:28]} 4. d3 {[%emt 0:05:35]} d6 {[%emt 0:01:09]} 5. g3 {[%emt 0:01:09]} Be7 {[%emt 0:00:23]} 6. Bg2 {[%emt 0:00:41]} O-O {[%emt 0:00:06]} 7. O-O {[%emt 0:00:07]} a5 {[%emt 0:02:47]} 8. Qa4 {[%emt 0:04:35]} Bd7 {[%emt 0:02:12]} 9. Qb3 {[%emt 0:00:14]} Bc6 {[%emt 0:04:43]} 10. Nb5 {[%emt 0:01:43]} Qd7 {[%emt 0:03:42]} 11. Nbd4 {[%emt 0:02:29]} Ba4 {[%emt 0:05:40]} 12. Qc3 {[%emt 0:05:19]} e5 {[%emt 0:00:27]} 13. Nb5 {[%emt 0:00:52]} c6 {[%emt 0:02:00]} 14. Nxd6 {[%emt 0:02:02]} Qxd6 {[%emt 0:03:29]} 15. b3 {[%emt 0:00:50]} e4 {[%emt 0:00:31]} 16. Bf4 {[%emt 0:01:39]} Qd7 {[%emt 0:01:41]} 17. Ne5 {[%emt 0:07:18]} Qe6 {[%emt 0:01:56]} 18. bxa4 {[%emt 0:01:56]} Nbd7 {[%emt 0:05:11]} 19. Nxd7 {[%emt 0:00:38]} Nxd7 {[%emt 0:00:16]} 20. Rab1 {[%emt 0:01:42]} g5 {[%emt 0:06:57]} 21. Bd2 {[%emt 0:01:31]} Bf6 {[%emt 0:06:29]} 22. Qc2 {[%emt 0:00:42]} Nc5 {[%emt 0:00:44]} 23. Be3 {[%emt 0:00:45]} exd3 {[%emt 0:03:47]} 24. exd3 {[%emt 0:00:02]} Na6 {[%emt 0:00:37]} 25. Rxb7 {[%emt 0:05:03]} Nb4 {[%emt 0:00:16]} 26. Qb3 {[%emt 0:00:22]} Qc8 {[%emt 0:00:34]} 27. c5+ {[%emt 0:02:07]} Kh8 {[%emt 0:00:15]} 28. Rf7 {[%emt 0:00:19]} Rb8 {[%emt 0:06:55]} 29. Rxf8+ {[%emt 0:00:30]} Qxf8 {[%emt 0:00:05]} 30. Qc4 {[%emt 0:02:32]} Rd8 {[%emt 0:04:47]} 31. Rd1 {[%emt 0:01:56]} h5 {[%emt 0:00:26]} 32. a3 {[%emt 0:01:12]} Nd5 {[%emt 0:00:23]} 33. Bd4 {[%emt 0:00:54]} f4 {[%emt 0:01:59]} 34. Bxf6+ {[%emt 0:01:01]} Qxf6 {[%emt 0:00:08]} 35. Rb1 {[%emt 0:06:18]} f3 {[%emt 0:00:29]} 36. Bf1 {[%emt 0:00:31]} g4 {[%emt 0:01:17]} 37. Rb7 {[%emt 0:00:21]} Re8 {[%emt 0:02:07]} 38. Qa6 {[%emt 0:01:41]} Ne3 {[%emt 0:01:45]} 39. Rb1 {[%emt 0:04:34]} h4 {[%emt 0:06:05]} 40. Re1 {[%emt 0:02:14]} hxg3 {[%emt 0:01:40]} 41. hxg3 {[%emt 0:30:55]} Kg7 {[%emt 0:30:57]} 42. Qa7+ {[%emt 0:04:42]} Kg6 {[%emt 0:00:00]} 43. Qxa5 {[%emt 0:00:00]} Re7 {[%emt 0:00:00]} 44. Qd2 {[%emt 0:00:00]} Nxf1 {[%emt 0:00:00]} 45. Rxf1 {[%emt 0:00:00]} Qh8 {[%emt 0:00:00]} 46. Qf4 {[%emt 0:00:00]} Qh3 {[%emt 0:00:00]} 47. Qd6+ {[%emt 0:00:00]} Kf7 {[%emt 0:00:00]} 48. Qf4+ {[%emt 0:00:00]} Kg8 {[%emt 0:00:00]} 49. Qg5+ {[%emt 0:00:00]} Kf8 {[%emt 0:00:00]} 50. Qf6+ {[%emt 0:00:00]} Kg8 {[%emt 0:00:00]} 51. Qg6+ {[%emt 0:00:00]} Rg7 {[%emt 0:00:00]} 52. Qe8+ {[%emt 0:00:00]} Kh7 {[%emt 0:00:00]} 53. Qe4+ {[%emt 0:00:00]} Kh6 {[%emt 0:00:00]} 54. Qf4+ {[%emt 0:00:00]} Kg6 {[%emt 0:00:00]} 55. Qe4+ {[%emt 0:00:00]} Kf7 {[%emt 0:00:00]} 56. Qf5+ {[%emt 0:00:00]} Kg8 {[%emt 0:00:00]} 57. Qe6+ {[%emt 0:00:00]} Kh7 {[%emt 0:00:00]} 58. Qf5+ {[%emt 0:00:00]} Kg8 {[%emt 0:00:46]} 1/2-1/2

[Event "Bergen Grand Prix 2019"]
[Site "Bergen"]
[Date "2019.11.16"]
[Round "3.9"]
[White "Westvik, Markus"]
[Black "Sorhus, Jostein"]
[Result "0-1"]
[ECO "A38"]
[WhiteElo "1220"]
[BlackElo "1630"]
[Annotator "NA"]
[PlyCount "54"]
[EventDate "2019.11.15"]
[EventType "swiss"]
[EventCountry "NOR"]
[SourceTitle "playchess.com"]
[Source "ChessBase"]
[SourceQuality "1"]
[TimeControl "40/5400:1800"]

1. Nf3 {[%emt 0:00:06]} Nf6 {[%emt 0:00:30]} 2. g3 {[%emt 0:00:14]} g6 {[%emt 0:00:07]} 3. Bg2 {[%emt 0:00:08]} c5 {[%emt 0:00:13]} 4. O-O {[%emt 0:00:17]} Nc6 {[%emt 0:01:00]} 5. c4 {[%emt 0:05:59]} Bg7 {[%emt 0:01:09]} 6. Nc3 {[%emt 0:00:40]} O-O {[%emt 0:00:42]} 7. d3 {[%emt 0:03:28]} d6 {[%emt 0:05:15]} 8. Rb1 {[%emt 0:01:08]} a5 {[%emt 0:00:36]} 9. a3 {[%emt 0:00:19]} Rb8 {[%emt 0:07:49]} 10. e4 {[%emt 0:12:44]} Be6 {[%emt 0:04:17]} 11. Be3 {[%emt 0:05:10]} Qc8 {[%emt 0:01:02]} 12. Qc2 {[%emt 0:06:34]} Bh3 {[%emt 0:00:54]} 13. Qc1 {[%emt 0:09:30]} Bxg2 {[%emt 0:00:07]} 14. Kxg2 {[%emt 0:00:13]} Ng4 {[%emt 0:02:36]} 15. Bd2 {[%emt 0:01:16]} Nge5 {[%emt 0:05:51]} 16. Nxe5 {[%emt 0:01:13]} Nxe5 {[%emt 0:00:14]} 17. Qc2 {[%emt 0:00:12]} e6 {[%emt 0:02:29]} 18. f4 {[%emt 0:03:25]} Nc6 {[%emt 0:00:45]} 19. Be3 {[%emt 0:01:39]} b6 {[%emt 0:04:24]} 20. Rbd1 {[%emt 0:01:56]} f5 {[%emt 0:06:06]} 21. exf5 {[%emt 0:04:32]} Rxf5 {[%emt 0:01:23]} 22. Rfe1 {[%emt 0:01:35]} Qb7 {[%emt 0:10:52]} 23. Kg1 {[%emt 0:02:33]} Nd4 {[%emt 0:02:31]} 24. Bxd4 {[%emt 0:01:06]} Bxd4+ {[%emt 0:00:06]} 25. Kf1 {[%emt 0:00:36]} Qh1+ {[%emt 0:00:15]} 26. Ke2 {[%emt 0:00:53]} Qxh2+ {[%emt 0:00:09]} 27. Kf3 {[%emt 0:00:30]} Qxc2 {[%emt 0:00:26]} 0-1